fUST/lending_fUST_20250609
["ID","MTS","AMOUNT","RATE_DAILY","PERIOD"]
[365035180,1749418248370,-449.02,0.00023013,4]
[365035181,1749418248379,-1589.29,0.00023013,4]
[365035182,1749418248389,-1332.04,0.00023013,4]
[365035183,1749418248400,-167.615807,0.00023013,7]
[365035184,1749418248410,-719.05,0.00023013,4]
[365035185,1749418248420,-440.0,0.00023013,4]
[365035186,1749418248431,-167.615807,0.00023013,7]
[365035187,1749418248440,-1635.96,0.00023013,4]
[365035188,1749418248450,-632.34,0.00023013,4]
[365035189,1749418248460,-760.16,0.00023013,4]
[365035190,1749418248470,-2457.25,0.00023013,4]
[365035191,1749418248480,-1607.52,0.00023013,4]
[365035192,1749418248490,-1690.48,0.00023013,4]
[365035193,1749418248501,-1001.47,0.00023013,4]
[365035194,1749418248510,-513.35,0.00023013,4]
[365035195,1749418248520,-599.18,0.00023013,4]
[365035196,1749418248530,-150.0,0.00023014,7]
[365035197,1749418248540,-737.33,0.00023015,7]
[365035198,1749418248550,-1000.0,0.0002302,2]
[365035199,1749418248560,-1500.0,0.0002302,2]
[365035200,1749418248570,-1500.0,0.0002302,2]
[365035201,1749418248580,-2400.0,0.00023067,2]
[365035202,1749418248590,-121411.59591787,0.00023067,2]
[365035203,1749418248600,-151.0,0.00023067,7]
[365035204,1749418248609,-154.989312,0.00023067,7]
[365035205,1749418248619,-151.0,0.00023067,7]
[365035206,1749418248628,-329.475313,0.00023067,7]
[365035207,1749418248638,-329.475313,0.00023067,7]
[365035208,1749418248649,-247.8257,0.00023067,7]
[365035209,1749418248658,-151.0,0.00023067,7]
[365035210,1749418248668,-151.0,0.00023067,7]
[365035211,1749418248678,-278.198717,0.00023067,7]
[365035212,1749418248687,-151.0,0.00023067,7]
[365035213,1749418248697,-151.0,0.00023067,7]
[365035214,1749418248706,-151.0,0.00023067,7]
[365035215,1749418248716,-175.526225,0.00023067,7]
[365035216,1749418248726,-279.581645,0.00023067,7]
[365035217,1749418248736,-279.581645,0.00023067,7]
[365035218,1749418248746,-151.0,0.00023067,7]
[365035219,1749418248755,-151.0,0.00023067,7]
[365035220,1749418248765,-153.102215,0.00023067,7]
[365035221,1749418248775,-151.0,0.00023067,7]
[365035222,1749418248784,-151.0,0.00023067,7]
[365035223,1749418248794,-259.437978,0.00023067,7]
[365035224,1749418248804,-151.000001,0.00023067,7]
[365035225,1749418248814,-151.0,0.00023067,7]
[365035226,1749418248824,-793.580252,0.00023067,7]
[365035227,1749418248834,-793.580252,0.00023067,7]
[365035228,1749418248856,-188.253285,0.00023067,7]
[365035229,1749418248867,-188.253285,0.00023067,7]
[365035230,1749418248877,-283.888994,0.00023067,7]
[365035231,1749418248887,-151.0,0.00023067,7]
[365035232,1749418248898,-151.0,0.00023067,7]
[365035233,1749418248909,-3470.944811,0.00023067,2]
[365035234,1749418248919,-3470.944811,0.00023067,2]
[365035235,1749418248930,-167.615807,0.00023067,7]
[365035236,1749418248940,-167.615807,0.00023067,7]
[365035237,1749418248950,-366.50216784,0.00023068,2]
[365035238,1749418248960,-194.76318022,0.00023068,2]
[365035239,1749418248971,-168.0,0.00023071,2]
[365035240,1749418248980,-168.0,0.00023093,2]
[365035241,1749418248991,-188103.36361804,0.00023098,2]
[365035242,1749418249000,-79374.18,0.000231,7]
[365035243,1749418249010,-151.0,0.000231,7]
[365035244,1749418249021,-35121.15,0.000231,2]
[365035245,1749418249030,-279.581645,0.000231,7]
[365035246,1749418249040,-279.581645,0.000231,7]
[365035247,1749418249050,-151.0,0.000231,7]
[365035248,1749418249060,-151.0,0.000231,7]
[365035249,1749418249070,-151.0,0.000231,7]
[365035250,1749418249079,-151.0,0.000231,7]
[365035251,1749418249089,-151.0,0.000231,7]
[365035252,1749418249099,-793.580252,0.000231,7]
[365035253,1749418249110,-793.580252,0.000231,7]
[365035254,1749418249119,-188.253285,0.000231,7]
[365035255,1749418249129,-188.253285,0.000231,7]
[365035256,1749418249138,-151.0,0.000231,7]
[365035257,1749418249147,-151.0,0.000231,7]
[365035258,1749418249158,-3470.944811,0.000231,2]
[365035259,1749418249168,-3470.944811,0.000231,2]
[365035260,1749418249178,-167.615807,0.000231,7]
[365035261,1749418249188,-167.615807,0.000231,7]
[365035262,1749418249198,-13529.12,0.000231,10]
[365035263,1749418249208,-5401.88788537,0.00023107,8]
[365035264,1749418249218,-175.526225,0.00023107,7]
[365035265,1749418249228,-168.0,0.00023115,2]
[365035266,1749418249238,-737.33,0.00023115,6]
[365035267,1749418249247,-168.0,0.00023147,2]
[365035268,1749418249258,-151.0,0.00023178,7]
[365035269,1749418249267,-151.0,0.00023178,7]
[365035270,1749418249278,-329.475313,0.00023178,7]
[365035271,1749418249287,-329.475313,0.00023178,7]
[365035272,1749418249297,-151.0,0.00023178,7]
[365035273,1749418249307,-151.0,0.00023178,7]
[365035274,1749418249317,-151.0,0.00023178,7]
[365035275,1749418249327,-405.0,0.00023199,2]
[365035276,1749418249336,-963.0,0.00023199,2]
[365035277,1749418249346,-737.33,0.00023215,3]
[365035278,1749418249356,-157.461156,0.00023226,7]
[365035279,1749418249366,-151.0,0.0002323,7]
[365035280,1749418249376,-168.0,0.0002323,2]
[365035281,1749418249386,-5401.88788537,0.00023245,8]
[365035282,1749418249396,-168.0,0.00023267,2]
[365035283,1749418249406,-150.0,0.00023273,2]
[365035284,1749418249416,-542.1,0.00023287,4]
[365035285,1749418249426,-953.62,0.00023287,4]
[365035286,1749418249436,-1917.51,0.00023287,4]
[365035287,1749418249446,-1779.9,0.00023287,4]
[365035288,1749418249462,-779.53,0.00023287,4]
[365035289,1749418249472,-590.1,0.00023287,4]
[365035290,1749418249482,-449.02,0.00023287,4]
[365035291,1749418249492,-1589.29,0.00023287,4]
[365035292,1749418249502,-1332.04,0.00023287,4]
[365035293,1749418249512,-719.05,0.00023287,4]
[365035294,1749418249522,-440.0,0.00023287,4]
[365035295,1749418249531,-1635.96,0.00023287,4]
[365035296,1749418249541,-632.34,0.00023287,4]
[365035297,1749418249551,-760.16,0.00023287,4]
[365035298,1749418249561,-2457.25,0.00023287,4]
[365035299,1749418249571,-1607.52,0.00023287,4]
[365035300,1749418249793,-1690.48,0.00023287,4]
[365035301,1749418249803,-1001.47,0.00023287,4]
[365035302,1749418249815,-513.35,0.00023287,4]
[365035303,1749418249827,-599.18,0.00023287,4]
[365035304,1749418249839,-151.0,0.0002329,7]
[365035305,1749418249851,-176.12414563,0.0002329,4]
[365035306,1749418249863,-176.12414563,0.0002329,4]
[365035307,1749418249873,-176.12414563,0.0002329,4]
[365035308,1749418249884,-176.12414563,0.0002329,4]
[365035309,1749418249894,-176.12414563,0.0002329,4]
[365035310,1749418249904,-176.12414563,0.0002329,4]
[365035311,1749418250053,-176.12414563,0.0002329,4]
[365035312,1749418250063,-176.12414563,0.0002329,4]
[365035313,1749418250076,-176.12414563,0.0002329,4]
[365035314,1749418250087,-176.12414563,0.0002329,4]
[365035315,1749418250098,-176.12414563,0.0002329,4]
[365035316,1749418250109,-176.12414563,0.0002329,4]
[365035317,1749418250120,-176.12414563,0.0002329,4]
[365035318,1749418250131,-176.12414563,0.0002329,4]
[365035319,1749418250142,-176.12414563,0.0002329,4]
[365035320,1749418250154,-176.12414563,0.0002329,4]
[365035321,1749418250164,-176.12414563,0.0002329,4]
[365035322,1749418250174,-176.12414563,0.0002329,4]
[365035323,1749418250183,-176.12414563,0.0002329,4]
[365035324,1749418250193,-176.12,0.0002329,4]
[365035325,1749418250204,-410.95633981,0.0002329,4]
[365035326,1749418250214,-410.95633981,0.0002329,4]
[365035327,1749418250224,-410.95633981,0.0002329,4]
[365035328,1749418250234,-410.95633981,0.0002329,4]
[365035329,1749418250243,-410.95633981,0.0002329,4]
[365035330,1749418250255,-410.95633981,0.0002329,4]
[365035331,1749418250264,-410.95633981,0.0002329,4]
[365035332,1749418250274,-410.95633981,0.0002329,4]
[365035333,1749418250283,-410.95633981,0.0002329,4]
[365035334,1749418250294,-410.95633981,0.0002329,4]
[365035335,1749418250304,-410.95633981,0.0002329,4]
[365035336,1749418250314,-410.95633981,0.0002329,4]
[365035337,1749418250324,-410.95633981,0.0002329,4]
[365035338,1749418250334,-410.95633981,0.0002329,4]
[365035339,1749418250343,-410.95633981,0.0002329,4]
[365035340,1749418250354,-410.95633981,0.0002329,4]
[365035341,1749418250365,-410.95633981,0.0002329,4]
[365035342,1749418250376,-410.95633981,0.0002329,4]
[365035343,1749418250386,-410.95633981,0.0002329,4]
[365035344,1749418250396,-410.95,0.0002329,4]
[365035345,1749418250406,-162.40910998,0.0002329,4]
[365035346,1749418250416,-162.40910998,0.0002329,4]
[365035347,1749418250426,-162.40910998,0.0002329,4]
[365035348,1749418250436,-162.40910998,0.0002329,4]
[365035349,1749418250446,-162.40910998,0.0002329,4]
[365035350,1749418250456,-162.40910998,0.0002329,4]
[365035351,1749418250467,-162.40910998,0.0002329,4]
[365035352,1749418250477,-162.40910998,0.0002329,4]
[365035353,1749418250487,-162.40910998,0.0002329,4]
[365035354,1749418250496,-162.40910998,0.0002329,4]
[365035355,1749418250506,-162.40910998,0.0002329,4]
[365035356,1749418250516,-162.4,0.0002329,4]
[365035357,1749418250526,-227.37275397,0.0002329,4]
[365035358,1749418250535,-227.37275397,0.0002329,4]
[365035359,1749418250546,-227.37275397,0.0002329,4]
[365035360,1749418250555,-227.37275397,0.0002329,4]
[365035361,1749418250565,-227.37275397,0.0002329,4]
[365035362,1749418250574,-227.37275397,0.0002329,4]
[365035363,1749418250584,-227.37275397,0.0002329,4]
[365035364,1749418250594,-227.37275397,0.0002329,4]
[365035365,1749418250603,-227.37275397,0.0002329,4]
[365035366,1749418250613,-227.37275397,0.0002329,4]
[365035367,1749418250623,-227.37275397,0.0002329,4]
[365035368,1749418250633,-227.37275397,0.0002329,4]
[365035369,1749418250643,-227.37275397,0.0002329,4]
[365035370,1749418250653,-227.37275397,0.0002329,4]
[365035371,1749418250662,-227.37275397,0.0002329,4]
[365035372,1749418250672,-227.37275397,0.0002329,4]
[365035373,1749418250682,-227.37275397,0.0002329,4]
[365035374,1749418250691,-227.37275397,0.0002329,4]
[365035375,1749418250701,-227.37275397,0.0002329,4]
[365035376,1749418250710,-227.37,0.0002329,4]
[365035377,1749418250721,-286.91534437,0.0002329,4]
[365035378,1749418250731,-286.91534437,0.0002329,4]
[365035379,1749418250740,-286.91534437,0.0002329,4]
[365035380,1749418250751,-286.91534437,0.0002329,4]
[365035381,1749418250760,-286.91534437,0.0002329,4]
[365035382,1749418250770,-286.91534437,0.0002329,4]
[365035383,1749418250780,-286.91534437,0.0002329,4]
[365035384,1749418250789,-286.91534437,0.0002329,4]
[365035385,1749418250798,-286.91534437,0.0002329,4]
[365035386,1749418250808,-286.91534437,0.0002329,4]
[365035387,1749418250817,-286.91534437,0.0002329,4]
[365035388,1749418250827,-286.91534437,0.0002329,4]
[365035389,1749418250835,-286.91534437,0.0002329,4]
[365035390,1749418250846,-286.91534437,0.0002329,4]
[365035391,1749418250856,-286.91534437,0.0002329,4]
[365035392,1749418250865,-286.91534437,0.0002329,4]
[365035393,1749418250875,-286.91534437,0.0002329,4]
[365035394,1749418250885,-286.91534437,0.0002329,4]
[365035395,1749418250895,-286.91534437,0.0002329,4]
[365035396,1749418250905,-286.91,0.0002329,4]
[365035397,1749418250915,-669.46913686,0.0002329,4]
[365035398,1749418250925,-669.46913686,0.0002329,4]
[365035399,1749418250934,-669.46913686,0.0002329,4]
[365035400,1749418250944,-669.46913686,0.0002329,4]
[365035401,1749418250954,-669.46913686,0.0002329,4]
[365035402,1749418250964,-669.46913686,0.0002329,4]
[365035403,1749418250974,-669.46913686,0.0002329,4]
[365035404,1749418250983,-669.46913686,0.0002329,4]
[365035405,1749418250993,-669.46913686,0.0002329,4]
[365035406,1749418251002,-669.46913686,0.0002329,4]
[365035407,1749418251011,-669.46913686,0.0002329,4]
[365035408,1749418251021,-669.46913686,0.0002329,4]
[365035409,1749418251030,-669.46913686,0.0002329,4]
[365035410,1749418251041,-669.46913686,0.0002329,4]
[365035411,1749418251051,-669.46913686,0.0002329,4]
[365035412,1749418251061,-669.46913686,0.0002329,4]
[365035413,1749418251071,-669.46913686,0.0002329,4]
[365035414,1749418251081,-669.46913686,0.0002329,4]
[365035415,1749418251091,-669.46913686,0.0002329,4]
[365035416,1749418251100,-669.46,0.0002329,4]
[365035417,1749418251110,-200.0,0.00023299,2]
[365035418,1749418251119,-200.0,0.00023299,2]
[365035419,1749418251129,-1291.15195182,0.000233,2]
[365035420,1749418251147,-4130.57762149,0.000233,2]
[365035421,1749418251210,-484.49385066,0.00019452,2]
[365035422,1749418251222,-90.53879932,0.00019452,2]
[365035423,1749418251231,-188.37118568,0.00020494,2]
[365035424,1749418251247,-257.97179818,0.00020494,2]
[365035425,1749418251257,-737.72,0.00021085,10]
[365035426,1749418251267,-151.0,0.00021095,2]
[365035427,1749418251278,-151.0,0.00021095,2]
[365035428,1749418251288,-151.0,0.00021917,2]
[365035429,1749418251298,-151.0,0.00021917,2]
[365035430,1749418251308,-151.0,0.00022,7]
[365035431,1749418251318,-151.0,0.00022,7]
[365035432,1749418251328,-151.0,0.000222,7]
[365035433,1749418251338,-151.0,0.00022515,7]
[365035434,1749418251348,-4645.36297268,0.000233,2]
[365035435,1749418251474,-440.0,0.00019178,2]
[365035436,1749418251484,-97.9,0.00019452,2]
[365035437,1749418251658,-154.23315255,0.00019078,2]
[365035438,1749418251669,-134.11185887,0.00019452,2]
[365035439,1749418251678,-151.0,0.00021095,2]
[365035440,1749418251691,-151.0,0.00021176,2]
[365035441,1749418251701,-151.0,0.00021176,2]
[365035442,1749418251715,-446.34298386,0.00021202,2]
[365035443,1749418251726,-446.34298386,0.0002191,2]
[365035444,1749418251739,-151.0,0.00021917,2]
[365035445,1749418251751,-151.0,0.00021917,2]
[365035446,1749418251762,-151.0,0.00021917,2]
[365035447,1749418251773,-151.0,0.00022,7]
[365035448,1749418251784,-6.6850812,0.00022,7]
[365035449,1749418251801,-144.3149188,0.00022,7]
[365035450,1749418251813,-151.0,0.000222,7]
[365035451,1749418251824,-151.0,0.0002224,7]
[365035452,1749418251834,-151.0,0.0002224,7]
[365035453,1749418251845,-151.0,0.00022515,7]
[365035454,1749418251857,-151.0,0.00022575,7]
[365035455,1749418251867,-151.0,0.00022575,7]
[365035456,1749418251877,-151.0,0.00023,7]
[365035457,1749418251886,-151.0,0.00023,7]
[365035458,1749418251895,-151.0,0.00023013,7]
[365035459,1749418251905,-151.0,0.00023013,7]
[365035460,1749418251914,-151.0,0.00023067,7]
[365035461,1749418251924,-151.0,0.00023067,7]
[365035462,1749418251934,-151.0,0.00023067,7]
[365035463,1749418251944,-151.0,0.00023098,7]
[365035464,1749418251953,-151.0,0.00023098,7]
[365035465,1749418251963,-151.0,0.000231,7]
[365035466,1749418252062,-151.0,0.00023107,7]
[365035467,1749418252075,-151.0,0.00023107,7]
[365035468,1749418252088,-7540.47954062,0.000233,2]
[365035472,1749418905996,361.69708,0.00013699,2]
[365035512,1749419431663,-295.65,0.00018541,2]
[365035515,1749419431675,-150.0,0.000189,2]
[365035517,1749419431686,-226.73577192,0.00019078,2]
[365035518,1749419431696,-173.79140566,0.00019078,2]
[365035521,1749419431707,-623.72484023,0.00019173,2]
[365035523,1749419431717,-500.0,0.00019173,2]
[365035525,1749419431727,-160.0,0.00019174,2]
[365035527,1749419431737,-300.0,0.00019176,2]
[365035529,1749419431747,-300.0,0.00019176,2]
[365035530,1749419431758,-581.0,0.00019176,2]
[365035532,1749419431768,-500.0,0.00019177,2]
[365035534,1749419431778,-271.85305583,0.00019177,2]
[365035536,1749419431788,-500.0,0.00019177,2]
[365035538,1749419431798,-500.0,0.00019177,2]
[365035540,1749419431808,-500.0,0.00019177,2]
[365035542,1749419431818,-500.0,0.00019177,2]
[365035543,1749419431833,-500.0,0.00019177,2]
[365035544,1749419431842,-500.0,0.00019177,2]
[365035545,1749419431852,-500.0,0.00019177,2]
[365035546,1749419431862,-500.0,0.00019177,2]
[365035547,1749419431873,-227.79795308,0.00019177,2]
[365035548,1749419431882,-500.0,0.00019177,2]
[365035549,1749419431892,-350.0,0.00019177,2]
[365035550,1749419431902,-500.0,0.00019177,2]
[365035551,1749419431911,-444.22965425,0.00019178,2]
[365035552,1749419431921,-470.0,0.00019178,2]
[365035553,1749419431931,-430.0,0.00019178,2]
[365035554,1749419431941,-454.31507374,0.00019178,2]
[365035555,1749419431950,-184.15922151,0.00019178,2]
[365035556,1749419431960,-440.0,0.00019178,2]
[365035557,1749419431970,-430.0,0.00019178,2]
[365035558,1749419431980,-470.0,0.00019178,2]
[365035559,1749419431990,-470.0,0.00019178,2]
[365035560,1749419431999,-430.0,0.00019178,2]
[365035561,1749419432009,-440.0,0.00019178,2]
[365035563,1749419432018,-440.0,0.00019178,2]
[365035565,1749419432028,-470.0,0.00019178,2]
[365035567,1749419432038,-204.11595402,0.00019178,2]
[365035569,1749419432048,-440.0,0.00019178,2]
[365035570,1749419432059,-440.0,0.00019178,2]
[365035573,1749419432070,-430.0,0.00019178,2]
[365035575,1749419432080,-430.0,0.00019178,2]
[365035577,1749419432090,-430.0,0.00019178,2]
[365035578,1749419432100,-310.0,0.00019178,2]
[365035580,1749419432110,-430.0,0.00019178,2]
[365035582,1749419432120,-440.0,0.00019178,2]
[365035583,1749419432130,-566.64939228,0.00019178,2]
[365035585,1749419432140,-370.0,0.00019178,2]
[365035587,1749419432150,-440.0,0.00019178,2]
[365035589,1749419432160,-440.0,0.00019178,2]
[365035592,1749419432170,-440.0,0.00019178,2]
[365035594,1749419432185,-440.0,0.00019178,2]
[365035596,1749419432195,-430.0,0.00019178,2]
[365035598,1749419432205,-440.0,0.00019178,2]
[365035600,1749419432214,-470.0,0.00019178,2]
[365035602,1749419432224,-440.0,0.00019178,2]
[365035604,1749419432234,-440.0,0.00019178,2]
[365035606,1749419432244,-430.0,0.00019178,2]
[365035609,1749419432254,-430.0,0.00019178,2]
[365035611,1749419432264,-440.0,0.00019178,2]
[365035613,1749419432273,-440.0,0.00019178,2]
[365035615,1749419432284,-430.0,0.00019178,2]
[365035617,1749419432294,-440.0,0.00019178,2]
[365035619,1749419432303,-430.0,0.00019178,2]
[365035621,1749419432314,-450.0,0.00019178,2]
[365035623,1749419432324,-440.0,0.00019178,2]
[365035625,1749419432334,-440.0,0.00019178,2]
[365035627,1749419432344,-430.0,0.00019178,2]
[365035629,1749419432354,-430.0,0.00019178,2]
[365035631,1749419432364,-430.0,0.00019178,2]
[365035633,1749419432374,-352.03157661,0.00019178,2]
[365035635,1749419432384,-440.0,0.00019178,2]
[365035638,1749419432395,-450.47537276,0.00019178,2]
[365035640,1749419432406,-430.0,0.00019178,2]
[365035642,1749419432417,-430.0,0.00019178,2]
[365035644,1749419432427,-430.0,0.00019178,2]
[365035646,1749419432436,-430.0,0.00019178,2]
[365035648,1749419432463,-430.0,0.00019178,2]
[365035650,1749419432484,-400.0,0.00019178,2]
[365035652,1749419432494,-430.0,0.00019178,2]
[365035654,1749419432505,-430.0,0.00019178,2]
[365035657,1749419432515,-362.14188417,0.00019178,2]
[365035659,1749419432524,-440.0,0.00019178,2]
[365035661,1749419432534,-205.68766391,0.00019178,2]
[365035663,1749419432543,-430.0,0.00019178,2]
[365035665,1749419432553,-430.0,0.00019178,2]
[365035667,1749419432563,-430.0,0.00019178,2]
[365035669,1749419432573,-430.0,0.00019178,2]
[365035671,1749419432583,-430.0,0.00019178,2]
[365035673,1749419432592,-440.0,0.00019178,2]
[365035675,1749419432602,-430.0,0.00019178,2]
[365035677,1749419432612,-430.0,0.00019178,2]
[365035679,1749419432623,-440.0,0.00019178,2]
[365035681,1749419432632,-450.0,0.00019178,2]
[365035683,1749419432643,-440.0,0.00019178,2]
[365035686,1749419432653,-397.7128426,0.00019178,2]
[365035688,1749419432663,-440.0,0.00019178,2]
[365035690,1749419432672,-440.0,0.00019178,2]
[365035692,1749419432682,-440.0,0.00019178,2]
[365035694,1749419432692,-440.0,0.00019178,2]
[365035696,1749419432702,-440.0,0.00019178,2]
[365035698,1749419432712,-440.0,0.00019178,2]
[365035700,1749419432722,-440.0,0.00019178,2]
[365035702,1749419432732,-440.0,0.00019178,2]
[365035704,1749419432743,-440.0,0.00019178,2]
[365035706,1749419432753,-440.0,0.00019178,2]
[365035709,1749419432763,-440.0,0.00019178,2]
[365035711,1749419432774,-440.0,0.00019178,2]
[365035713,1749419432785,-534.93379259,0.00019178,2]
[365035715,1749419432794,-440.0,0.00019178,2]
[365035717,1749419432804,-440.0,0.00019178,2]
[365035719,1749419432814,-384.5826342,0.00019178,2]
[365035721,1749419432827,-440.0,0.00019178,2]
[365035723,1749419432837,-440.0,0.00019178,2]
[365035725,1749419432851,-440.0,0.00019178,2]
[365035727,1749419432861,-430.0,0.00019178,2]
[365035729,1749419432871,-430.0,0.00019178,2]
[365035730,1749419432880,-450.0,0.00019178,2]
[365035731,1749419432891,-470.0,0.00019178,2]
[365035732,1749419432902,-450.0,0.00019178,2]
[365035733,1749419432912,-450.0,0.00019178,2]
[365035734,1749419432924,-440.0,0.00019178,2]
[365035735,1749419432935,-430.0,0.00019178,2]
[365035736,1749419432945,-440.0,0.00019178,2]
[365035737,1749419432955,-440.0,0.00019178,2]
[365035738,1749419432965,-440.0,0.00019178,2]
[365035739,1749419432975,-430.0,0.00019178,2]
[365035740,1749419432985,-430.0,0.00019178,2]
[365035741,1749419432995,-440.0,0.00019178,2]
[365035742,1749419433004,-392.09741395,0.00019178,2]
[365035743,1749419433014,-450.0,0.00019178,2]
[365035744,1749419433025,-440.0,0.00019178,2]
[365035745,1749419433035,-440.0,0.00019178,2]
[365035746,1749419433045,-440.0,0.00019178,2]
[365035747,1749419433055,-288.26323732,0.00019178,2]
[365035748,1749419433065,-440.0,0.00019178,2]
[365035749,1749419433075,-440.0,0.00019178,2]
[365035750,1749419433085,-440.0,0.00019178,2]
[365035751,1749419433095,-433.87876234,0.00019178,2]
[365035752,1749419433105,-440.0,0.00019178,2]
[365035753,1749419433115,-440.0,0.00019178,2]
[365035754,1749419433125,-440.0,0.00019178,2]
[365035755,1749419433135,-440.0,0.00019178,2]
[365035756,1749419433144,-440.0,0.00019178,2]
[365035757,1749419433154,-450.0,0.00019178,2]
[365035758,1749419433164,-440.0,0.00019178,2]
[365035759,1749419433174,-430.0,0.00019178,2]
[365035760,1749419433183,-401.26771658,0.00019178,2]
[365035761,1749419433193,-440.0,0.00019178,2]
[365035762,1749419433202,-440.0,0.00019178,2]
[365035763,1749419433212,-440.0,0.00019178,2]
[365035764,1749419433222,-440.0,0.00019178,2]
[365035765,1749419433232,-440.0,0.00019178,2]
[365035766,1749419433242,-440.0,0.00019178,2]
[365035767,1749419433252,-440.0,0.00019178,2]
[365035768,1749419433261,-458.85883292,0.00019178,2]
[365035769,1749419433271,-440.0,0.00019178,2]
[365035770,1749419433281,-440.0,0.00019178,2]
[365035771,1749419433291,-440.0,0.00019178,2]
[365035772,1749419433301,-430.0,0.00019178,2]
[365035773,1749419433311,-450.0,0.00019178,2]
[365035774,1749419433322,-235.62116323,0.00019178,2]
[365035775,1749419433331,-450.0,0.00019178,2]
[365035776,1749419433341,-440.0,0.00019178,2]
[365035777,1749419433351,-440.0,0.00019178,2]
[365035778,1749419433360,-300.0,0.00019178,2]
[365035779,1749419433370,-404.14285129,0.00019178,2]
[365035780,1749419433380,-440.0,0.00019178,2]
[365035781,1749419433390,-438.63360321,0.00019178,2]
[365035782,1749419433566,-440.0,0.00019178,2]
[365035783,1749419433578,-407.06495353,0.00019178,2]
[365035784,1749419433588,-440.0,0.00019178,2]
[365035785,1749419433598,-440.0,0.00019178,2]
[365035786,1749419433607,-440.0,0.00019178,2]
[365035787,1749419433618,-500.0,0.00019178,2]
[365035788,1749419433627,-500.0,0.00019178,2]
[365035789,1749419433637,-430.0,0.00019178,2]
[365035790,1749419433647,-500.0,0.00019178,2]
[365035791,1749419433657,-500.0,0.00019178,2]
[365035792,1749419433667,-500.0,0.00019178,2]
[365035793,1749419433689,-440.0,0.00019178,2]
[365035794,1749419433700,-440.0,0.00019178,2]
[365035795,1749419433711,-440.0,0.00019178,2]
[365035796,1749419433723,-440.0,0.00019178,2]
[365035797,1749419433734,-440.0,0.00019178,2]
[365035798,1749419433745,-450.0,0.00019178,2]
[365035799,1749419433756,-440.0,0.00019178,2]
[365035800,1749419433767,-430.0,0.00019178,2]
[365035801,1749419433778,-440.0,0.00019178,2]
[365035802,1749419433788,-440.0,0.00019178,2]
[365035803,1749419433799,-440.0,0.00019178,2]
[365035804,1749419433809,-422.36409094,0.00019178,2]
[365035805,1749419433820,-440.0,0.00019178,2]
[365035806,1749419433830,-440.0,0.00019178,2]
[365035807,1749419433844,-440.0,0.00019178,2]
[365035808,1749419433854,-440.0,0.00019178,2]
[365035809,1749419433865,-450.0,0.00019178,2]
[365035810,1749419433875,-440.0,0.00019178,2]
[365035811,1749419433886,-1000.0,0.00019178,2]
[365035812,1749419433896,-522.97,0.00019178,2]
[365035813,1749419433907,-327.33540601,0.00019178,2]
[365035814,1749419433917,-450.0,0.00019178,2]
[365035815,1749419433928,-400.0,0.00019178,2]
[365035816,1749419433938,-450.0,0.00019178,2]
[365035817,1749419433949,-430.0,0.00019178,2]
[365035818,1749419433959,-400.0,0.00019178,2]
[365035819,1749419433969,-440.0,0.00019178,2]
[365035820,1749419433979,-440.0,0.00019178,2]
[365035821,1749419433989,-450.0,0.00019178,2]
[365035822,1749419433999,-440.0,0.00019178,2]